bitfinex-derivatives/quotes_BTCF0:USTF0_20260127
["timestamp","ask_amount","ask_price","bid_price","bid_amount"]
[1769488580561,0.1111252,88842.0,88829.0,0.10974805]
[1769488580980,0.1111252,88842.0,88830.0,0.00683176]
[1769488581169,0.1111252,88842.0,88830.0,0.11657981]
[1769488581369,0.1111252,88842.0,88830.0,0.10974805]
[1769488581562,0.1111252,88842.0,88831.0,0.00683176]
[1769488581971,0.1111252,88842.0,88830.0,0.10974805]
[1769488583168,0.11229304,88851.0,88831.0,0.12570515]
[1769488583575,0.11229304,88850.0,88831.0,0.12570515]
[1769488588478,0.11229304,88850.0,88831.0,0.11443415]
[1769488588673,0.011268,88851.0,88831.0,0.11443415]
[1769488588674,0.11229304,88848.0,88831.0,0.11443415]
[1769488589575,0.11229304,88846.0,88831.0,0.11443415]
[1769488591985,0.11329304,88846.0,88831.0,0.11443415]
[1769488593484,0.11229304,88846.0,88827.0,0.12570515]
[1769488594075,0.011269,88845.0,88827.0,0.11443415]
[1769488594383,0.11229304,88844.0,88827.0,0.11443415]
[1769488595585,0.11229304,88842.0,88827.0,0.11443415]
[1769488597986,0.11229304,88842.0,88826.0,0.424391]
[1769488598189,0.11229304,88842.0,88826.0,0.41312]
[1769488598583,0.11229304,88842.0,88826.0,0.52755415]
[1769488598989,0.11229304,88842.0,88827.0,0.11443415]
[1769488600789,0.10144,88846.0,88826.0,0.41312]
[1769488600790,0.11229304,88840.0,88826.0,0.41312]
[1769488603292,0.11329304,88840.0,88826.0,0.41312]
[1769488603992,0.11229304,88840.0,88826.0,0.52755415]
[1769488605896,0.12356304,88840.0,88826.0,0.52755415]
[1769488607184,0.12456304,88840.0,88826.0,0.52755415]
[1769488608688,0.10623961,88839.0,88826.0,0.52755415]
[1769488608894,0.12456304,88840.0,88826.0,0.52755415]
[1769488609086,0.10624071,88839.0,88826.0,0.52755415]
[1769488609283,0.11329304,88840.0,88826.0,0.52755415]
[1769488609486,0.10623359,88839.0,88826.0,0.52755415]
[1769488609693,0.11229304,88840.0,88826.0,0.52755415]
[1769488609895,0.10623359,88839.0,88826.0,0.52755415]
[1769488610088,0.11229304,88840.0,88826.0,0.52755415]
[1769488610294,0.1062242,88839.0,88826.0,0.52755415]
[1769488610494,0.11229304,88840.0,88826.0,0.52755415]
[1769488610695,0.10722414,88839.0,88826.0,0.52755415]
[1769488610888,0.001,88839.0,88826.0,0.52755415]
[1769488611285,0.001,88839.0,88827.0,0.11443415]
[1769488612603,0.11329304,88840.0,88827.0,0.11443415]
[1769488613200,0.10621326,88839.0,88827.0,0.11443415]
[1769488613407,0.001,88839.0,88827.0,0.11443415]
[1769488614107,0.11390459,88843.0,88827.0,0.11443415]
[1769488614317,0.10620901,88842.0,88827.0,0.11443415]
[1769488614499,0.10620901,88841.0,88827.0,0.11443415]
[1769488614701,0.10620901,88840.0,88827.0,0.11443415]
[1769488614902,0.10620901,88839.0,88827.0,0.11443415]
[1769488615102,0.11390459,88843.0,88827.0,0.11443415]
[1769488615310,0.10620573,88842.0,88827.0,0.11443415]
[1769488615511,0.10620573,88841.0,88827.0,0.11443415]
[1769488615714,0.10620573,88840.0,88827.0,0.11443415]
[1769488615912,0.10620573,88839.0,88827.0,0.11443415]
[1769488616112,0.11390459,88843.0,88827.0,0.11443415]
[1769488616316,0.10620286,88842.0,88827.0,0.11443415]
[1769488616519,0.10620286,88841.0,88827.0,0.11443415]
[1769488616815,0.10620286,88840.0,88827.0,0.11443415]
[1769488617013,0.10620286,88839.0,88827.0,0.11443415]
[1769488617216,0.12517459,88842.0,88827.0,0.11443415]
[1769488617416,0.22010576,88841.0,88827.0,0.11443415]
[1769488617618,0.10620117,88840.0,88827.0,0.11443415]
[1769488617819,0.10620117,88839.0,88827.0,0.11443415]
[1769488618010,0.11390459,88841.0,88827.0,0.11443415]
[1769488618011,0.01127,88840.0,88827.0,0.11443415]
[1769488618211,0.10619987,88839.0,88827.0,0.11443415]
[1769488618414,0.01127,88840.0,88827.0,0.11443415]
[1769488618714,0.22010446,88839.0,88827.0,0.11443415]
[1769488618914,0.11390459,88839.0,88827.0,0.11443415]
[1769488619919,0.11490459,88839.0,88827.0,0.11443415]
[1769488620619,0.10619976,88838.0,88827.0,0.11443415]
[1769488620822,0.10619976,88837.0,88827.0,0.11443415]
[1769488621014,0.11490459,88839.0,88827.0,0.11443415]
[1769488621214,0.10620032,88838.0,88827.0,0.11443415]
[1769488621414,0.10620032,88837.0,88827.0,0.11443415]
[1769488621611,0.11490459,88839.0,88827.0,0.11443415]
[1769488621812,0.10619956,88838.0,88827.0,0.11443415]
[1769488622020,0.10619956,88837.0,88827.0,0.11443415]
[1769488622221,0.001,88838.0,88827.0,0.11443415]
[1769488622418,0.10620005,88837.0,88827.0,0.11443415]
[1769488622616,0.11390459,88844.0,88827.0,0.11443415]
[1769488622818,0.001,88839.0,88827.0,0.11443415]
[1769488623015,0.10619999,88838.0,88827.0,0.11443415]
[1769488623217,0.10619999,88837.0,88827.0,0.11443415]
[1769488623412,0.001,88839.0,88827.0,0.11443415]
[1769488623629,0.10620113,88838.0,88827.0,0.11443415]
[1769488623812,0.10620113,88837.0,88827.0,0.11443415]
[1769488624112,0.112709,88843.0,88827.0,0.11443415]
[1769488624312,0.1062027,88842.0,88827.0,0.11443415]
[1769488624619,0.1062027,88841.0,88827.0,0.11443415]
[1769488624818,0.1062027,88840.0,88827.0,0.11443415]
[1769488625019,0.1062027,88839.0,88827.0,0.11443415]
[1769488625221,0.1062027,88838.0,88827.0,0.11443415]
[1769488625421,0.1062027,88837.0,88827.0,0.11443415]
[1769488625621,0.112709,88843.0,88827.0,0.11443415]
[1769488625825,0.1062048,88842.0,88827.0,0.11443415]
[1769488626025,0.1062048,88841.0,88827.0,0.11443415]
[1769488626326,0.1062048,88840.0,88827.0,0.11443415]
[1769488626525,0.1062048,88839.0,88827.0,0.11443415]
[1769488626722,0.1062048,88838.0,88827.0,0.11443415]
[1769488627023,0.1062048,88837.0,88827.0,0.11443415]
[1769488627225,0.112709,88843.0,88827.0,0.11443415]
[1769488627412,0.10621121,88842.0,88827.0,0.11443415]
[1769488627613,0.10621121,88841.0,88827.0,0.11443415]
[1769488627819,0.10621121,88840.0,88827.0,0.11443415]
[1769488628020,0.10621121,88839.0,88827.0,0.11443415]
[1769488628221,0.10621121,88838.0,88827.0,0.11443415]
[1769488628422,0.10621121,88837.0,88827.0,0.11443415]
[1769488628626,0.112709,88843.0,88827.0,0.11443415]
[1769488628921,0.10621432,88842.0,88827.0,0.11443415]
[1769488629121,0.10621432,88841.0,88827.0,0.11443415]
[1769488629324,0.1062183,88840.0,88827.0,0.11443415]
[1769488629522,0.1062183,88839.0,88827.0,0.11443415]
[1769488629724,0.1062183,88838.0,88827.0,0.11443415]
[1769488630024,0.1062183,88837.0,88827.0,0.11443415]
[1769488630224,0.10622296,88836.0,88827.0,0.11443415]
[1769488630426,0.112709,88843.0,88827.0,0.11443415]
[1769488630619,0.01127,88841.0,88827.0,0.11443415]
[1769488630821,0.10622296,88840.0,88827.0,0.11443415]
[1769488631126,0.10622296,88839.0,88827.0,0.11443415]
[1769488631427,0.10622296,88838.0,88827.0,0.11443415]
[1769488631618,0.10622296,88837.0,88827.0,0.11443415]
[1769488631815,0.10622296,88836.0,88827.0,0.11443415]
[1769488632019,0.01127,88841.0,88827.0,0.11443415]
[1769488632222,0.10397815,88840.0,88827.0,0.11443415]
[1769488632520,0.10397815,88839.0,88827.0,0.11443415]
[1769488632723,0.10497815,88838.0,88827.0,0.11443415]
[1769488632917,0.10397815,88837.0,88827.0,0.11443415]
[1769488633728,0.10397815,88836.0,88827.0,0.11443415]
[1769488633927,0.001,88840.0,88827.0,0.11443415]
[1769488634125,0.1039837,88839.0,88827.0,0.11443415]
[1769488634326,0.1039837,88838.0,88827.0,0.11443415]
[1769488634621,0.1039837,88837.0,88827.0,0.11443415]
[1769488634827,0.1039837,88836.0,88827.0,0.11443415]
[1769488635130,0.001,88837.0,88827.0,0.11443415]
[1769488635325,0.10399773,88836.0,88827.0,0.11443415]
[1769488635527,0.001,88837.0,88827.0,0.11443415]
[1769488635734,0.10399773,88836.0,88827.0,0.11443415]
[1769488635924,0.001,88837.0,88827.0,0.11443415]
[1769488636122,0.10399767,88836.0,88827.0,0.11443415]
[1769488636326,0.10399767,88835.0,88827.0,0.11443415]
[1769488636626,0.001,88837.0,88827.0,0.11443415]
[1769488637725,0.01127,88841.0,88827.0,0.11443415]
[1769488637930,0.001,88836.0,88827.0,0.11443415]
[1769488638731,0.001,88837.0,88827.0,0.11443415]
[1769488639233,0.001,88837.0,88826.0,0.41312]
[1769488639635,0.11490459,88837.0,88826.0,0.41312]
[1769488639840,0.11490459,88837.0,88823.0,0.1089684]
[1769488640133,0.001,88836.0,88823.0,0.1089684]
[1769488641537,0.11490459,88837.0,88823.0,0.1089684]
[1769488642336,0.11390459,88837.0,88823.0,0.1089684]
[1769488642539,0.12517459,88837.0,88823.0,0.1089684]
[1769488643733,0.11476078,88832.0,88820.0,0.10144]
[1769488644129,0.11476078,88832.0,88820.0,0.10827176]
[1769488644329,0.12603178,88832.0,88820.0,0.10827176]
[1769488645330,0.11576078,88832.0,88820.0,0.10827176]
[1769488646136,0.11576078,88832.0,88820.0,0.10144]
[1769488647538,0.11476078,88830.0,88820.0,0.10144]
[1769488647743,0.11476078,88829.0,88812.0,0.11542948]
[1769488648039,0.11476078,88829.0,88813.0,0.00683176]
[1769488648235,0.11476078,88829.0,88814.0,0.12670248]
[1769488648642,0.11476078,88829.0,88815.0,0.00683176]
[1769488649137,0.11476078,88829.0,88814.0,0.12670248]
[1769488649330,0.11476078,88829.0,88815.0,0.00683176]
[1769488649527,0.11476078,88829.0,88815.0,0.12226124]
[1769488649742,0.11476078,88829.0,88815.0,0.11542948]
[1769488649941,0.11476078,88829.0,88816.0,0.00683176]
[1769488650343,0.11476078,88829.0,88815.0,0.11542948]
[1769488650643,0.11476078,88829.0,88816.0,0.00683176]
[1769488651043,0.11476078,88829.0,88815.0,0.11542948]
[1769488651343,0.11476078,88829.0,88816.0,0.00683176]
[1769488651741,0.11476078,88829.0,88817.0,0.00683176]
[1769488651935,0.11476078,88829.0,88811.0,0.14651246]
[1769488652243,0.11476078,88829.0,88811.0,0.13523946]
[1769488652443,0.11476078,88829.0,88812.0,0.11542948]
[1769488654749,0.11476078,88829.0,88813.0,0.11542948]
[1769488655146,0.11476078,88829.0,88814.0,0.00683176]
[1769488655450,0.11476078,88829.0,88814.0,0.12226124]
[1769488655749,0.11476078,88829.0,88814.0,0.11542948]
[1769488655949,0.11476078,88829.0,88815.0,0.00683176]
[1769488656446,0.11476078,88829.0,88814.0,0.11542948]
[1769488656638,0.11476078,88829.0,88815.0,0.00683176]
[1769488657546,0.11476078,88829.0,88814.0,0.11542948]
[1769488657750,0.11476078,88829.0,88815.0,0.00683176]
[1769488658747,0.11476078,88829.0,88811.0,0.11542948]
[1769488658939,0.11476078,88829.0,88812.0,0.12670248]
[1769488659134,0.11476078,88829.0,88812.0,0.11542948]
[1769488661438,0.11476078,88827.0,88812.0,0.11542948]
[1769488661845,0.11476078,88827.0,88813.0,0.00683176]
[1769488662040,0.11476078,88827.0,88813.0,0.12226124]
[1769488662245,0.11476078,88827.0,88813.0,0.11542948]
[1769488662246,0.011272,88826.0,88813.0,0.11542948]
[1769488662439,0.12603278,88826.0,88814.0,0.00683176]
[1769488662852,0.12603278,88826.0,88813.0,0.11542948]
[1769488663040,0.12603278,88826.0,88814.0,0.00683176]
[1769488663440,0.12703278,88826.0,88813.0,0.11542948]
[1769488663747,0.12703278,88826.0,88814.0,0.00683176]
[1769488664138,0.12703278,88826.0,88813.0,0.11542948]
[1769488664336,0.11576078,88826.0,88814.0,0.00683176]
[1769488664849,0.11576078,88826.0,88813.0,0.11542948]
[1769488665039,0.11576078,88826.0,88814.0,0.00683176]
[1769488665543,0.11576078,88826.0,88813.0,0.11542948]
[1769488665843,0.11576078,88826.0,88814.0,0.00683176]
[1769488666050,0.12703278,88826.0,88814.0,0.00683176]
[1769488666248,0.12703278,88826.0,88809.0,0.11542948]
[1769488666449,0.12603278,88823.0,88810.0,0.00683176]
[1769488666644,0.11476078,88823.0,88810.0,0.00683176]
[1769488666842,0.11476078,88823.0,88809.0,0.11542948]
[1769488667042,0.11476078,88823.0,88810.0,0.00683176]
[1769488667443,0.11476078,88823.0,88809.0,0.11542948]
[1769488667639,0.11476078,88823.0,88810.0,0.12226124]
[1769488667845,0.11476078,88828.0,88810.0,0.13353424]
[1769488668042,0.11476078,88828.0,88810.0,0.11542948]
[1769488668243,0.11476078,88828.0,88811.0,0.12226124]
[1769488669745,0.11476078,88826.0,88811.0,0.12226124]
[1769488669945,0.11476078,88826.0,88811.0,0.11542948]
[1769488670144,0.11476078,88822.0,88808.0,0.11542948]
[1769488670350,0.11476078,88822.0,88808.0,0.12226124]
[1769488674954,0.11476078,88822.0,88808.0,0.11542948]
[1769488675351,0.12603278,88822.0,88806.0,0.13538556]
[1769488675560,0.11494401,88819.0,88806.0,0.0001461]
[1769488676058,0.11494401,88819.0,88806.0,0.11289691]
[1769488676555,0.11494401,88819.0,88807.0,0.00683176]
[1769488677048,0.11494401,88819.0,88806.0,0.11289691]
[1769488677247,0.11494401,88819.0,88807.0,0.11958257]
[1769488678655,0.11494401,88823.0,88809.0,0.2747971]
[1769488679155,0.11494401,88823.0,88810.0,0.11958257]
[1769488679557,0.11494401,88823.0,88810.0,0.11275081]
[1769488680653,0.11494401,88823.0,88806.0,0.0001461]
[1769488680654,0.11494401,88840.0,88817.0,0.11275081]
[1769488680855,0.10144,88844.0,88831.0,0.11275081]
[1769488681055,0.10144,88844.0,88840.0,0.11275081]
[1769488681360,0.10144,88844.0,88831.0,0.11275081]
[1769488683151,0.11494401,88854.0,88835.0,0.11275081]
[1769488683353,0.10144,88853.0,88841.0,0.11275081]
[1769488683671,0.21400507,88857.0,88841.0,0.11275081]
[1769488683866,0.21638401,88857.0,88841.0,0.11275081]
[1769488684061,0.12144677,88856.0,88841.0,0.11275081]
[1769488686169,0.11494401,88856.0,88841.0,0.11275081]
[1769488692974,0.12621201,88856.0,88841.0,0.11275081]
[1769488694576,0.11494401,88856.0,88841.0,0.11275081]
[1769488695574,0.11494401,88856.0,88836.0,0.01127]
[1769488696272,0.11494401,88853.0,88833.0,0.11275081]
[1769488696577,0.11494401,88851.0,88833.0,0.11275081]
[1769488697375,0.11494401,88851.0,88835.0,0.11275081]
[1769488697875,0.11494401,88851.0,88836.0,0.001]
[1769488698078,0.11494401,88844.0,88828.0,0.10144]
[1769488698778,0.11494401,88844.0,88835.0,0.001]
[1769488699482,0.11494401,88844.0,88828.0,0.10244]
[1769488700370,0.11494401,88844.0,88829.0,0.011271]
[1769488700577,0.11494401,88844.0,88831.0,0.011271]
[1769488700880,0.11494401,88844.0,88835.0,0.001]
[1769488701572,0.11494401,88844.0,88831.0,0.011271]
[1769488701773,0.11494401,88844.0,88831.0,0.012271]
[1769488702382,0.11494401,88844.0,88831.0,0.011271]
[1769488702682,0.11494401,88844.0,88835.0,0.001]
[1769488704274,0.11494401,88844.0,88831.0,0.012271]
[1769488704874,0.11494401,88844.0,88831.0,0.011271]
[1769488705082,0.11494401,88844.0,88835.0,0.001]
[1769488705786,0.11494401,88844.0,88831.0,0.012271]
[1769488707484,0.11494401,88844.0,88835.0,0.001]
[1769488708279,0.11494401,88844.0,88831.0,0.011271]
[1769488708280,0.11494401,88844.0,88831.0,0.012271]
[1769488710082,0.11494401,88844.0,88835.0,0.001]
[1769488710482,0.11315468,88850.0,88835.0,0.1205738]
[1769488710686,0.10144,88853.0,88839.0,0.1195738]
[1769488711485,0.10144,88853.0,88840.0,0.01127]
[1769488711675,0.21459468,88853.0,88840.0,0.01127]
[1769488712982,0.11315468,88852.0,88839.0,0.1195738]
[1769488713288,0.11315468,88852.0,88839.0,0.1205738]
[1769488714082,0.11415468,88852.0,88839.0,0.1195738]
[1769488714890,0.11415468,88852.0,88836.0,0.01127]
[1769488715189,0.11415468,88852.0,88828.0,0.19122117]
[1769488715190,0.11415468,88852.0,88839.0,0.1308438]
[1769488716387,0.11315468,88852.0,88839.0,0.1308438]
[1769488716894,0.11315468,88852.0,88836.0,0.01127]
[1769488717390,0.11415468,88852.0,88836.0,0.01127]
[1769488719293,0.11415468,88852.0,88838.0,0.01127]
[1769488719692,0.11415468,88852.0,88839.0,0.1308438]
[1769488719987,0.11315468,88852.0,88839.0,0.1308438]
[1769488720984,0.11415468,88852.0,88839.0,0.1308438]
[1769488721986,0.11415468,88852.0,88836.0,0.01127]
[1769488723001,0.11315468,88852.0,88836.0,0.01127]
[1769488725393,0.11315468,88852.0,88834.0,0.08978117]
[1769488726494,0.11415468,88852.0,88834.0,0.08978117]
[1769488727499,0.11415468,88852.0,88835.0,0.01127]
[1769488729494,0.11315468,88852.0,88835.0,0.01127]
[1769488729699,0.11415468,88852.0,88835.0,0.01127]
[1769488731687,0.11415468,88852.0,88833.0,0.19122117]
[1769488732600,0.11315468,88852.0,88833.0,0.19122117]
[1769488732900,0.11415468,88852.0,88833.0,0.19122117]
[1769488733300,0.11415468,88852.0,88833.0,0.08978117]
[1769488733500,0.12542268,88852.0,88833.0,0.08978117]
[1769488734308,0.12542268,88852.0,88834.0,0.08978117]
[1769488734604,0.12542268,88852.0,88832.0,0.011271]
[1769488735195,0.11415468,88852.0,88832.0,0.011271]
[1769488735803,0.11415468,88852.0,88830.0,0.13523946]
[1769488736008,0.11315468,88852.0,88830.0,0.24416408]
[1769488736200,0.11415468,88852.0,88830.0,0.24416408]
[1769488736506,0.11415468,88852.0,88831.0,0.10892462]
[1769488736692,0.11415468,88852.0,88834.0,0.01127]
[1769488737003,0.11415468,88852.0,88835.0,0.01127]
[1769488737794,0.11315468,88852.0,88835.0,0.01127]
[1769488738404,0.1142194,88850.0,88835.0,0.01127]
[1769488738797,0.1142194,88850.0,88835.0,0.01227]
[1769488740204,0.1142194,88850.0,88835.0,0.001]
[1769488741303,0.1254884,88850.0,88831.0,0.13523946]
[1769488741506,0.1254884,88850.0,88829.0,0.13523946]
[1769488741997,0.1254884,88850.0,88829.0,0.011271]
[1769488742407,0.1142194,88847.0,88831.0,0.001]
[1769488742608,0.1142194,88847.0,88828.0,0.24795046]
[1769488742792,0.1142194,88847.0,88830.0,0.011271]
[1769488742997,0.1142194,88850.0,88834.0,0.12019462]
[1769488743398,0.1142194,88850.0,88834.0,0.10892462]
[1769488745011,0.1142194,88850.0,88834.0,0.10992462]
[1769488748609,0.1142194,88850.0,88834.0,0.001]
[1769488750404,0.011269,88849.0,88834.0,0.001]
[1769488750721,0.1142194,88848.0,88834.0,0.001]
[1769488753214,0.1142194,88848.0,88830.0,0.27094446]
[1769488753411,0.1142194,88848.0,88834.0,0.001]
[1769488754310,0.1142194,88848.0,88830.0,0.16301984]
[1769488755313,0.1142194,88848.0,88831.0,0.011271]
[1769488756203,0.1142194,88848.0,88830.0,0.16301984]
[1769488756513,0.1142194,88848.0,88830.0,0.16201984]
[1769488756714,0.1142194,88848.0,88834.0,0.001]
[1769488757109,0.11256254,88847.0,88828.0,0.10144]
[1769488757310,0.1142194,88839.0,88821.0,0.13523946]
[1769488757505,0.1142194,88839.0,88820.0,0.3986993]
[1769488757710,0.1142194,88839.0,88820.0,0.23667946]
[1769488757917,0.1142194,88839.0,88820.0,0.3986993]
[1769488758212,0.1142194,88839.0,88828.0,0.001]
[1769488759915,0.1152194,88839.0,88825.0,0.011272]
[1769488761309,0.1152194,88839.0,88822.0,0.011272]
[1769488762909,0.1142194,88839.0,88822.0,0.011272]
[1769488763222,0.1152194,88839.0,88822.0,0.011272]
[1769488764509,0.1152194,88839.0,88820.0,0.3986993]
[1769488765007,0.10864784,88837.0,88820.0,0.10144]
[1769488765617,0.10864784,88837.0,88817.0,0.011273]
[1769488766912,0.10864784,88837.0,88817.0,0.012273]
[1769488768116,0.10864784,88837.0,88819.0,0.011272]
[1769488768823,0.10864784,88837.0,88821.0,0.011272]
[1769488770016,0.10964784,88837.0,88821.0,0.011272]
[1769488772423,0.10964784,88837.0,88820.0,0.16201984]
[1769488774424,0.10964784,88837.0,88821.0,0.011272]
[1769488774923,0.10964784,88837.0,88820.0,0.16201984]
[1769488775615,0.10864784,88837.0,88820.0,0.16201984]
[1769488775816,0.10964784,88837.0,88820.0,0.16201984]
[1769488776725,0.10964784,88837.0,88820.0,0.17329184]
[1769488778831,0.10964784,88837.0,88820.0,0.28315346]
[1769488779030,0.001,88837.0,88828.0,0.10986162]
[1769488779227,0.10144,88836.0,88828.0,0.10986162]
[1769488779721,0.10144,88836.0,88827.0,0.16201984]
[1769488779921,0.10144,88836.0,88824.0,0.011272]
[1769488780226,0.10144,88836.0,88823.0,0.10986162]
[1769488780726,0.10864784,88835.0,88823.0,0.10986162]
[1769488780930,0.10864784,88835.0,88820.0,0.16201984]
[1769488781133,0.10864784,88835.0,88820.0,0.27188146]
[1769488782221,0.10864784,88835.0,88821.0,0.10986162]
[1769488782422,0.10964784,88835.0,88821.0,0.10986162]
[1769488783128,0.10864784,88835.0,88821.0,0.10986162]
[1769488783431,0.10964784,88835.0,88821.0,0.10986162]
[1769488788936,0.10864784,88835.0,88821.0,0.10986162]
[1769488789136,0.10964784,88835.0,88821.0,0.10986162]
[1769488791238,0.10864784,88835.0,88821.0,0.10986162]
[1769488791436,0.10964784,88835.0,88821.0,0.10986162]
[1769488793532,0.10964784,88835.0,88820.0,0.16201984]
[1769488793737,0.11622106,88833.0,88817.0,0.10144]
[1769488793938,0.11622106,88829.0,88817.0,0.10144]
[1769488794440,0.11622106,88827.0,88817.0,0.10144]
[1769488794641,0.11622106,88825.0,88817.0,0.10144]
[1769488794846,0.16201984,88830.0,88811.0,0.13523946]
[1769488794847,0.11622106,88821.0,88811.0,0.13523946]
[1769488795044,0.11622106,88821.0,88811.0,0.00683176]
[1769488797537,0.11722106,88821.0,88811.0,0.00683176]
[1769488799236,0.11633515,88820.0,88805.0,0.13407547]
[1769488799441,0.11633515,88820.0,88800.0,0.11245619]
[1769488799442,0.11633515,88820.0,88804.0,0.11245619]
[1769488800840,0.11733515,88820.0,88804.0,0.11245619]
[1769488801433,0.11633515,88820.0,88804.0,0.11245619]
[1769488801637,0.11733515,88820.0,88804.0,0.11245619]
[1769488803339,0.11733515,88820.0,88811.0,0.11245619]
[1769488803340,0.00111409,88820.0,88811.0,0.11245619]
[1769488803543,0.10144,88826.0,88811.0,0.11245619]
[1769488803744,0.001,88820.0,88811.0,0.11245619]
[1769488804443,0.11622106,88825.0,88811.0,0.11245619]
[1769488804640,0.001,88820.0,88811.0,0.11245619]
[1769488805147,0.11622106,88825.0,88811.0,0.11245619]
[1769488805341,0.001,88820.0,88811.0,0.11245619]
[1769488807543,0.11622106,88825.0,88811.0,0.11245619]
[1769488807848,0.001,88820.0,88811.0,0.11245619]
[1769488809650,0.11722106,88825.0,88811.0,0.11245619]
[1769488810447,0.11622106,88825.0,88811.0,0.11245619]
[1769488810650,0.001,88820.0,88811.0,0.11245619]
[1769488812854,0.11622106,88825.0,88811.0,0.11245619]
[1769488813050,0.11622106,88823.0,88811.0,0.11245619]
[1769488813251,0.11622106,88823.0,88806.0,0.10144]
[1769488813453,0.11622106,88821.0,88806.0,0.10144]
[1769488813751,0.11622106,88819.0,88806.0,0.10144]
[1769488814252,0.11622106,88819.0,88801.0,0.28097297]
[1769488814452,0.11622106,88819.0,88802.0,0.10144]
[1769488814854,0.11622106,88819.0,88803.0,0.12373019]
[1769488815352,0.11622106,88819.0,88803.0,0.11245619]
[1769488816149,0.11722106,88819.0,88803.0,0.11245619]
[1769488816855,0.11622106,88819.0,88803.0,0.11245619]
[1769488817051,0.11722106,88819.0,88803.0,0.11245619]
[1769488817655,0.11622106,88819.0,88803.0,0.11245619]
[1769488817846,0.11722106,88819.0,88803.0,0.11245619]
[1769488819251,0.11622106,88819.0,88803.0,0.11245619]
[1769488819448,0.11722106,88819.0,88803.0,0.11245619]
[1769488820046,0.11622106,88819.0,88803.0,0.11245619]
[1769488820245,0.11722106,88819.0,88803.0,0.11245619]
[1769488822157,0.11622106,88819.0,88803.0,0.11245619]
[1769488822455,0.11722106,88819.0,88803.0,0.11245619]
[1769488823157,0.11622106,88819.0,88803.0,0.11245619]
[1769488823356,0.11722106,88819.0,88803.0,0.11245619]
[1769488829853,0.12849406,88819.0,88803.0,0.11245619]
[1769488831058,0.12849406,88819.0,88802.0,0.10144]
[1769488831059,0.11224446,88814.0,88802.0,0.10144]
[1769488832154,0.11224446,88812.0,88796.0,0.16851678]
[1769488832353,0.11224446,88812.0,88793.0,0.1174248]
[1769488832354,0.11224446,88806.0,88795.0,0.04888591]
[1769488832556,0.11224446,88804.0,88795.0,0.04888591]
[1769488833854,0.11324446,88804.0,88795.0,0.04888591]
[1769488834761,0.11224446,88801.0,88781.0,0.10954125]
[1769488834962,0.001,88804.0,88781.0,0.10954125]
[1769488834963,0.11224446,88797.0,88781.0,0.10954125]
[1769488835669,0.011275,88796.0,88781.0,0.10954125]
[1769488836164,0.11324446,88797.0,88781.0,0.10954125]
[1769488836562,0.12451946,88797.0,88781.0,0.10954125]
[1769488836761,0.12351946,88797.0,88781.0,0.10954125]
[1769488836963,0.001,88796.0,88781.0,0.10954125]
[1769488837261,0.11324446,88796.0,88781.0,0.10954125]
[1769488838260,0.11224446,88796.0,88781.0,0.10954125]
[1769488838866,0.12351946,88796.0,88781.0,0.10954125]
[1769488839364,0.11224446,88793.0,88779.0,0.10144]
[1769488839569,0.11224446,88789.0,88779.0,0.10144]
[1769488839958,0.11224446,88787.0,88773.0,0.03176332]
[1769488840158,0.11224446,88783.0,88773.0,0.03176332]
[1769488840670,0.11224446,88781.0,88773.0,0.03176332]
[1769488842167,0.11324446,88781.0,88773.0,0.03176332]
[1769488842672,0.11324446,88781.0,88767.0,0.10148]
[1769488845566,0.11224446,88779.0,88767.0,0.10148]
[1769488847568,0.11324446,88779.0,88767.0,0.10148]
[1769488854162,0.10148,88778.0,88759.0,8.605e-05]
[1769488854473,0.11604681,88770.0,88759.0,8.605e-05]
[1769488856578,0.11704681,88770.0,88759.0,8.605e-05]
[1769488857172,0.11604681,88770.0,88759.0,8.605e-05]
[1769488859383,0.11704681,88770.0,88759.0,8.605e-05]
[1769488859973,0.001,88770.0,88760.0,0.11013942]
[1769488860176,0.001,88770.0,88759.0,8.605e-05]
[1769488860389,0.11704681,88770.0,88759.0,8.605e-05]
[1769488860972,0.12832581,88770.0,88759.0,8.605e-05]
[1769488861875,0.11704681,88770.0,88759.0,8.605e-05]
[1769488862269,0.12832581,88770.0,88753.0,0.0078871]
[1769488864078,0.11348387,88768.0,88753.0,0.0078871]
[1769488865182,0.11225607,88766.0,88753.0,0.0078871]
[1769488866585,0.11325607,88766.0,88753.0,0.0078871]
[1769488867184,0.11225607,88766.0,88753.0,0.0078871]
[1769488867385,0.11325607,88766.0,88753.0,0.0078871]
[1769488867775,0.001,88766.0,88753.0,0.11802652]
[1769488868690,0.21371448,88768.0,88753.0,0.12930752]
[1769488868889,0.001,88766.0,88753.0,0.11802652]
[1769488869085,0.22536999,88795.0,88753.0,0.11802652]
[1769488869086,0.11039205,88778.0,88764.0,0.11013942]
[1769488869290,0.10541688,88777.0,88764.0,0.11013942]
[1769488869591,0.10152,88781.0,88764.0,0.11013942]
[1769488869790,0.21583218,88780.0,88764.0,0.11013942]
[1769488869982,0.11039205,88780.0,88764.0,0.11013942]
[1769488877601,0.10152,88781.0,88766.0,0.11013942]
[1769488878694,0.11185959,88780.0,88766.0,0.11013942]
[1769488880997,0.11285959,88780.0,88766.0,0.11013942]
[1769488881598,0.11185959,88780.0,88766.0,0.11013942]
[1769488881893,0.11285959,88780.0,88766.0,0.11013942]
[1769488883996,0.11185959,88780.0,88766.0,0.11013942]
[1769488884201,0.11285959,88780.0,88766.0,0.11013942]
[1769488886896,0.11185959,88780.0,88766.0,0.11013942]
[1769488887599,0.11285959,88780.0,88766.0,0.11013942]
[1769488888602,0.11285959,88780.0,88761.0,0.112882]
[1769488890609,0.11285959,88780.0,88760.0,0.17354343]
[1769488890610,0.11285959,88780.0,88763.0,0.112882]
[1769488890806,0.11185959,88780.0,88763.0,0.112882]
[1769488891006,0.11185959,88780.0,88766.0,0.112882]
[1769488893107,0.11179253,88789.0,88775.0,0.112882]
[1769488893308,0.001,88780.0,88775.0,0.112882]
[1769488893510,0.10152,88786.0,88775.0,0.112882]
[1769488894309,0.10152,88786.0,88757.0,0.27003678]
[1769488894310,0.11179253,88785.0,88766.0,0.112882]
[1769488896223,0.11179253,88785.0,88767.0,0.124161]
[1769488896819,0.1099604,88780.0,88767.0,0.112882]
[1769488898016,0.1109604,88780.0,88767.0,0.112882]
[1769488899416,0.1099604,88780.0,88767.0,0.112882]
[1769488901232,0.11179253,88778.0,88762.0,0.214402]
[1769488901526,0.11179253,88778.0,88762.0,0.10152]
[1769488901829,0.11179253,88771.0,88752.0,0.23659997]
[1769488902220,0.11179253,88771.0,88752.0,0.10152]
[1769488902421,0.16226343,88770.0,88752.0,0.10152]
[1769488902622,0.11179253,88769.0,88752.0,0.10152]
[1769488903624,0.12307153,88769.0,88752.0,0.10152]
[1769488905228,0.11179253,88769.0,88752.0,0.10152]
[1769488906224,0.11179253,88769.0,88747.0,0.112882]
[1769488906430,0.11279253,88769.0,88750.0,0.011281]